fUSD/lending_fUSD_20240927
["ID","MTS","AMOUNT","RATE_DAILY","PERIOD"]
[339333480,1727452369442,-605.27,0.0001178,2]
[339333481,1727452369452,-3676.32,0.0001178,2]
[339333482,1727452369462,-500.0,0.0001178,2]
[339333483,1727452369473,-500.31965492,0.0001178,2]
[339333484,1727452369484,-2097.15138199,0.0001178,2]
[339333485,1727452369509,-1513.5224096,0.0001178,2]
[339333486,1727452369527,-1691.13620841,0.0001178,2]
[339333487,1727452369537,-1279.53,0.0001178,2]
[339333488,1727452369546,-500.0,0.0001178,2]
[339333489,1727452369556,-500.0,0.0001178,2]
[339333490,1727452369566,-3676.32,0.0001178,2]
[339333491,1727452369576,-605.27,0.0001178,2]
[339333492,1727452369586,-3519.83766959,0.0001178,2]
[339333493,1727452369600,-284.00225202,0.0001178,2]
[339333494,1727452369612,-916.37007839,0.0001178,2]
[339333495,1727452369621,-500.0,0.0001178,2]
[339333496,1727452369630,-23.48158047,0.0001178,2]
[339333497,1727452369644,-1884.86841953,0.0001178,2]
[339333498,1727452369654,-500.0,0.0001178,2]
[339333499,1727452369663,-6050.66,0.0001178,2]
[339333500,1727452369673,-2365.41,0.0001178,2]
[339333501,1727452369682,-500.0,0.0001178,2]
[339333502,1727452369692,-5301.81,0.0001178,2]
[339333503,1727452369701,-500.0,0.0001178,2]
[339333504,1727452369711,-500.0,0.0001178,2]
[339333505,1727452369720,-1279.53,0.0001178,2]
[339333506,1727452369732,-3868.12,0.0001178,2]
[339333507,1727452369742,-605.27,0.0001178,2]
[339333508,1727452369751,-500.0,0.0001178,2]
[339333509,1727452369761,-4720.21,0.0001178,2]
[339333510,1727452369770,-1908.35,0.0001178,2]
[339333511,1727452369779,-323.25,0.0001178,2]
[339333512,1727452369790,-6050.66,0.0001178,2]
[339333513,1727452369799,-500.0,0.0001178,2]
[339333514,1727452369808,-500.0,0.0001178,2]
[339333515,1727452369818,-3676.32,0.0001178,2]
[339333516,1727452369827,-1279.53,0.0001178,2]
[339333517,1727452369836,-500.0,0.0001178,2]
[339333518,1727452369845,-605.27,0.0001178,2]
[339333519,1727452369854,-5301.81,0.0001178,2]
[339333520,1727452369864,-4720.21,0.0001178,2]
[339333521,1727452369875,-6050.66,0.0001178,2]
[339333522,1727452369885,-3868.12,0.0001178,2]
[339333523,1727452369895,-500.0,0.0001178,2]
[339333524,1727452369904,-500.0,0.0001178,2]
[339333525,1727452369915,-337.60787783,0.0001178,2]
[339333526,1727452369924,-500.0,0.0001178,2]
[339333527,1727452369935,-2365.41,0.0001178,2]
[339333528,1727452369946,-1908.35,0.0001178,2]
[339333529,1727452369955,-3676.32,0.0001178,2]
[339333530,1727452369965,-1279.53,0.0001178,2]
[339333531,1727452369975,-5301.81,0.0001178,2]
[339333532,1727452369985,-500.0,0.0001178,2]
[339333533,1727452369995,-632.46,0.0001178,2]
[339333534,1727452370005,-4720.21,0.0001178,2]
[339333535,1727452370015,-500.0,0.0001178,2]
[339333536,1727452370025,-500.0,0.0001178,2]
[339333537,1727452370035,-3868.12,0.0001178,2]
[339333538,1727452370045,-500.0,0.0001178,2]
[339333539,1727452370054,-500.0,0.0001178,2]
[339333540,1727452370064,-500.0,0.0001178,2]
[339333541,1727452370074,-4720.21,0.0001178,2]
[339333542,1727452370088,-2365.41,0.0001178,2]
[339333543,1727452370098,-1908.35,0.0001178,2]
[339333544,1727452370108,-3676.32,0.0001178,2]
[339333545,1727452370118,-5301.81,0.0001178,2]
[339333546,1727452370129,-500.0,0.0001178,2]
[339333547,1727452370139,-1279.53,0.0001178,2]
[339333548,1727452370150,-632.46,0.0001178,2]
[339333549,1727452370162,-500.0,0.0001178,2]
[339333550,1727452370171,-6050.66,0.0001178,2]
[339333551,1727452370181,-500.0,0.0001178,2]
[339333552,1727452370190,-605.27,0.0001178,2]
[339333553,1727452370200,-500.0,0.0001178,2]
[339333554,1727452370209,-3868.12,0.0001178,2]
[339333555,1727452370219,-500.59215645,0.0001178,2]
[339333556,1727452370229,-3676.43660556,0.0001178,2]
[339333557,1727452370239,-4720.21,0.0001178,2]
[339333558,1727452370248,-1908.35,0.0001178,2]
[339333559,1727452370258,-1279.53,0.0001178,2]
[339333560,1727452370267,-632.46,0.0001178,2]
[339333561,1727452370277,-986.98141795,0.0001178,2]
[339333562,1727452370333,-3455.53409534,0.0001178,2]
[339333563,1727452370345,-305.45013769,0.0001178,2]
[339333564,1727452370359,-553.84434902,0.0001178,2]
[339333565,1727452370369,-500.0,0.0001178,2]
[339333566,1727452370378,-558.91723936,0.0001178,2]
[339333567,1727452370387,-6050.80500056,0.0001178,2]
[339333568,1727452370396,-1112.99,0.0001178,2]
[339333569,1727452370406,-500.0,0.0001178,2]
[339333570,1727452370415,-2634.68397682,0.0001178,2]
[339333571,1727452370428,-475.77602318,0.0001178,2]
[339333572,1727452370437,-605.27,0.0001178,2]
[339333573,1727452370446,-500.0,0.0001178,2]
[339333574,1727452370456,-295.01497372,0.0001178,2]
[339333575,1727452370465,-144.0590031,0.0001178,2]
[339333576,1727452370479,-342.6033747,0.0001178,2]
[339333577,1727452370490,-13.3376222,0.0001178,2]
[339333578,1727452370499,-1908.35,0.0001178,2]
[339333579,1727452370509,-632.46,0.0001178,2]
[339333580,1727452370518,-1279.53,0.0001178,2]
[339333581,1727452370528,-4720.21,0.0001178,2]
[339333582,1727452370537,-319.08747039,0.0001178,2]
[339333583,1727452370570,-4982.72252961,0.0001178,2]
[339333584,1727452370579,-500.0,0.0001178,2]
[339333585,1727452370588,-2365.41,0.0001178,2]
[339333586,1727452370598,-500.0,0.0001178,2]
[339333587,1727452370607,-1112.99,0.0001178,2]
[339333588,1727452370618,-3110.46,0.0001178,2]
[339333589,1727452370627,-500.0,0.0001178,2]
[339333590,1727452370636,-605.27,0.0001178,2]
[339333591,1727452370645,-500.0,0.0001178,2]
[339333592,1727452370655,-1908.35,0.0001178,2]
[339333593,1727452370664,-632.46,0.0001178,2]
[339333594,1727452370674,-1279.53,0.0001178,2]
[339333595,1727452370683,-314.72865929,0.0001178,2]
[339333596,1727452370692,-2365.41,0.0001178,2]
[339333597,1727452370702,-4720.21,0.0001178,2]
[339333598,1727452370711,-1112.99,0.0001178,2]
[339333599,1727452370721,-500.0,0.0001178,2]
[339333600,1727452370732,-3110.46,0.0001178,2]
[339333601,1727452370750,-455.67335248,0.0001178,2]
[339333602,1727452370760,-605.27,0.0001178,2]
[339333603,1727452370769,-500.0,0.0001178,2]
[339333604,1727452370779,-500.0,0.0001178,2]
[339333605,1727452370789,-1908.35,0.0001178,2]
[339333606,1727452370798,-500.37000208,0.0001178,2]
[339333607,1727452370808,-632.46,0.0001178,2]
[339333608,1727452370818,-3868.12,0.0001178,2]
[339333609,1727452370828,-5301.81,0.0001178,2]
[339333610,1727452370837,-137.59714586,0.0001178,2]
[339333611,1727452370859,-916.74900749,0.0001178,2]
[339333613,1727452371208,-516.0,0.0001178,2]
[339333614,1727452371218,-225.18384665,0.0001178,2]
[339333615,1727452371230,-2365.41,0.0001178,2]
[339333616,1727452371240,-1112.99,0.0001178,2]
[339333617,1727452371251,-3110.46,0.0001178,2]
[339333618,1727452371261,-500.0,0.0001178,2]
[339333619,1727452371271,-1094.89183365,0.0001178,2]
[339333620,1727452371285,-706.49721745,0.0001178,2]
[339333621,1727452371403,-2918.8209489,0.0001178,2]
[339333622,1727452371413,-282.56,0.0001178,2]
[339333623,1727452371423,-1908.35,0.0001178,2]
[339333624,1727452371433,-500.0,0.0001178,2]
[339333625,1727452371444,-249.44415695,0.0001178,2]
[339333626,1727452371458,-383.01584305,0.0001178,2]
[339333627,1727452371468,-605.27,0.0001178,2]
[339333628,1727452371478,-5301.81,0.0001178,2]
[339333629,1727452371487,-2365.42091777,0.0001178,2]
[339333630,1727452371497,-3110.46,0.0001178,2]
[339333631,1727452371506,-1279.53,0.0001178,2]
[339333632,1727452371516,-1112.99,0.0001178,2]
[339333633,1727452371525,-500.0,0.0001178,2]
[339333634,1727452371535,-3331.82085245,0.0001178,2]
[339333635,1727452371549,-385.16520952,0.0001178,2]
[339333636,1727452371562,-912.85999773,0.0001178,2]
[339333637,1727452371574,-90.3639403,0.0001178,2]
[339333638,1727452371585,-569.40815473,0.0001178,2]
[339333639,1727452371605,-1338.94184527,0.0001178,2]
[339333640,1727452371614,-500.0,0.0001178,2]
[339333641,1727452371624,-3868.12,0.0001178,2]
[339333642,1727452371634,-1112.99,0.0001178,2]
[339333643,1727452371644,-605.31881814,0.0001178,2]
[339333644,1727452371654,-500.0,0.0001178,2]
[339333645,1727452371664,-4720.21,0.0001178,2]
[339333646,1727452371674,-5301.81,0.0001178,2]
[339333647,1727452371684,-3110.46,0.0001178,2]
[339333648,1727452371693,-1908.35,0.0001178,2]
[339333649,1727452371703,-632.46,0.0001178,2]
[339333650,1727452371714,-500.0,0.0001178,2]
[339333651,1727452371725,-3868.3349872,0.0001178,2]
[339333652,1727452371736,-1279.53,0.0001178,2]
[339333653,1727452371747,-1112.99,0.0001178,2]
[339333654,1727452371756,-500.0,0.0001178,2]
[339333655,1727452371766,-4720.21,0.0001178,2]
[339333656,1727452371776,-5301.81,0.0001178,2]
[339333657,1727452371786,-3110.46,0.0001178,2]
[339333658,1727452371795,-500.0,0.0001178,2]
[339333659,1727452371805,-632.46,0.0001178,2]
[339333660,1727452371815,-1279.53,0.0001178,2]
[339333661,1727452371824,-1112.99,0.0001178,2]
[339333662,1727452371834,-500.0,0.0001178,2]
[339333663,1727452371844,-4720.21,0.0001178,2]
[339333664,1727452371854,-3110.46,0.0001178,2]
[339333665,1727452371863,-500.0,0.0001178,2]
[339333666,1727452371873,-4010.28,0.0001178,2]
[339333667,1727452371883,-5301.81,0.0001178,2]
[339333668,1727452371893,-738.64503266,0.0001178,2]
[339333669,1727452371916,-1169.70496734,0.0001178,2]
[339333670,1727452371926,-632.46,0.0001178,2]
[339333671,1727452371936,-1279.53,0.0001178,2]
[339333672,1727452371946,-500.0,0.0001178,2]
[339333673,1727452371956,-1112.99,0.0001178,2]
[339333674,1727452371966,-4720.21,0.0001178,2]
[339333675,1727452371977,-3110.46,0.0001178,2]
[339333676,1727452371987,-4010.28,0.0001178,2]
[339333677,1727452371997,-500.0,0.0001178,2]
[339333678,1727452372008,-1640.43401961,0.0001178,2]
[339333679,1727452372023,-267.91598039,0.0001178,2]
[339333680,1727452372053,-407.80901961,0.0001178,2]
[339333681,1727452372081,-748.82902201,0.0001178,2]
[339333682,1727452372093,-275.5687984,0.0001178,2]
[339333683,1727452372105,-1358.33273909,0.0001178,2]
[339333684,1727452372117,-2511.27042089,0.0001178,2]
[339333685,1727452372127,-632.46,0.0001178,2]
[339333686,1727452372138,-1279.53,0.0001178,2]
[339333687,1727452372148,-500.0,0.0001178,2]
[339333688,1727452372161,-1112.99,0.0001178,2]
[339333689,1727452372171,-4720.21,0.0001178,2]
[339333690,1727452372182,-650.40228327,0.0001178,2]
[339333691,1727452372196,-2460.05771673,0.0001178,2]
[339333692,1727452372206,-992.9518646,0.0001178,2]
[339333693,1727452372226,-754.85459043,0.0001178,2]
[339333694,1727452372239,-2262.47354497,0.0001178,2]
[339333695,1727452372249,-500.0,0.0001178,2]
[339333696,1727452372260,-1799.29176295,0.0001178,2]
[339333697,1727452372273,-633.21866435,0.0001178,2]
[339333699,1727452379575,1500.0,0.00011065,2]
[339333700,1727452382424,165.62,0.00011047,2]
[339333701,1727452386087,250.0,0.00011041,2]
[339333702,1727452389143,328.0,0.0001103,2]
[339333703,1727452394388,760.62,0.00010876,2]
[339333704,1727452398184,364.7,0.00010866,2]
[339333705,1727452403708,250.0,0.00011028,2]
[339333706,1727452413363,150.0,0.00011034,2]
[339333707,1727452423115,1466.786944,0.00011504,2]
[339333708,1727452442631,197.99,9.117e-05,2]
[339333709,1727452442857,197.99,0.00011381,2]
[339333710,1727452476518,911.72,0.00011029,2]
[339333711,1727452486956,200.0,0.00011381,2]
[339333712,1727452514235,200.0,1.178e-05,2]
[339333713,1727452525579,2191.76197423,0.00011472,2]
[339333714,1727452530219,182.74,0.00010959,2]
[339333715,1727452551364,1628.845002,0.00015,30]
[339333716,1727452552825,162.3,9.589e-05,2]
[339333717,1727452563026,500.0,0.0001086,2]
[339333718,1727452631628,1000.0,0.00011473,2]
[339333719,1727452677785,12788.71108177,0.00010845,2]
[339333720,1727452677809,11111.28891823,0.00010845,2]
[339333721,1727452689327,618.03,0.00010959,2]
[339333722,1727452756262,1050.0,0.00011,2]
[339333723,1727452766008,500.0,0.00010959,2]
[339333724,1727452795865,406.38,0.00010853,2]
[339333725,1727452814064,156.55,0.00010845,2]
[339333726,1727452861772,250.0,0.00010959,2]
[339333727,1727452925890,184.55,0.00010743,2]
[339333728,1727452950390,250.0,0.00010743,2]
[339333729,1727452968517,250.0,0.00010739,2]
[339333730,1727453089979,927.02,0.00010732,2]
[339333731,1727453102486,1000.0,0.00010717,2]
[339333732,1727453107553,150.0,0.00010578,2]
[339333733,1727453110188,150.0,0.00010578,2]
[339333734,1727453117286,150.0,0.00010578,2]
[339333735,1727453119484,150.0,8.764e-05,2]
[339333736,1727453119507,60.18,8.764e-05,2]
[339333737,1727453119891,89.82,0.00011028,2]
[339333738,1727453119913,120.36,0.00011028,2]
[339333739,1727453124283,150.0,0.00010578,2]
[339333740,1727453124302,1.7399799,0.00010578,2]
[339333741,1727453127935,150.0,0.00010578,2]
[339333742,1727453127959,1.18089716,0.00010578,2]
[339333743,1727453133168,150.0,0.00010578,2]
[339333744,1727453133193,0.66099431,0.00010578,2]
[339333745,1727453164818,242.03,0.00010959,2]
[339333746,1727453167845,153.83,0.000149,31]
[339333747,1727453184446,150.0,0.00010663,2]
[339333748,1727453184467,150.0,0.00010663,2]
[339333749,1727453184488,150.0,0.00010663,2]
[339333750,1727453184510,150.0,0.00010663,2]
[339333751,1727453184531,150.0,0.00010663,2]
[339333752,1727453184552,150.0,0.00010663,2]
[339333753,1727453184573,150.0,0.00010663,2]
[339333754,1727453184594,150.0,0.00010663,2]
[339333755,1727453184614,150.0,0.00010663,2]
[339333756,1727453184634,150.0,0.00010663,2]
[339333757,1727453184655,150.0,0.00010663,2]
[339333758,1727453184677,295.32213025,0.00010663,2]
[339333759,1727453184701,1174.75786975,0.00010663,2]
[339333760,1727453198197,150.0,0.00011111,2]
[339333761,1727453231141,150.0,0.0001064,2]
[339333762,1727453231164,150.0,0.0001064,2]
[339333763,1727453231185,150.0,0.0001064,2]
[339333764,1727453231206,150.0,0.0001064,2]
[339333765,1727453231227,150.0,0.0001064,2]
[339333766,1727453231250,23150.0,0.0001064,2]
[339333771,1727453370677,261.04,0.00010959,2]
[339333772,1727453375156,510.4806441,0.00011106,2]
[339333773,1727453391878,156.55,0.00010631,2]
[339333774,1727453392322,250.0,0.00010959,2]
[339333779,1727453431971,-150.0,0.00011166,2]
[339333780,1727453431981,-215.35210606,0.000112,2]
[339333781,1727453431993,-534.64789394,0.000112,2]
[339333782,1727453432003,-187.27,0.000113,2]
[339333783,1727453432012,-600.0,0.000113,4]
[339333784,1727453432022,-657.79296,0.00011372,2]
[339333785,1727453432032,-3986.41905122,0.00011372,2]
[339333786,1727453432042,-900.0,0.00011373,2]
[339333787,1727453432052,-657.79296,0.00011373,2]
[339333788,1727453432061,-1300.0,0.000114,4]
[339333789,1727453432073,-1000.0,0.00011473,2]
[339333790,1727453432082,-1749.82611905,0.00011473,2]
[339333791,1727453432094,-2267.66898095,0.00011473,2]
[339333792,1727453432104,-596.29969619,0.00011473,2]
[339333793,1727453432116,-10.14740381,0.00011473,2]
[339333794,1727453432125,-1422.4903,0.00011473,2]
[339333795,1727453432135,-1043.24577219,0.00011473,2]
[339333796,1727453432146,-545.44642781,0.00011473,2]
[339333797,1727453432155,-454.92529219,0.000115,4]
[339333798,1727453432168,-1493.40198445,0.000115,4]
[339333800,1727453432305,-51.67272336,0.000115,4]
[339333802,1727453432317,-150.99,0.000115,2]
[339333804,1727453432326,-226.48111976,0.00011524,2]
[339333806,1727453432336,-226.48111976,0.00011546,2]
[339333808,1727453432345,-762.4338549,0.00011563,2]
[339333810,1727453432355,-226.48111976,0.00011569,2]
[339333812,1727453432364,-150.0,0.00011571,2]
[339333814,1727453432375,-499.99,0.00011572,2]
[339333816,1727453432385,-212.67006246,0.00011572,2]
[339333818,1727453432397,-1354.42091175,0.00011572,2]
[339333820,1727453432408,-1332.90902579,0.00011572,2]
[339333822,1727453432418,-1023.2041351,0.00011572,2]
[339333824,1727453432430,-1468.5158649,0.00011572,2]
[339333826,1727453432440,-442.53,0.00011572,2]
[339333828,1727453432450,-17340.642,0.00011573,2]
[339333830,1727453432462,-150.0,0.00011573,2]
[339333832,1727453432471,-48397.7737,0.00011573,2]
[339333833,1727453432481,-6839.9092451,0.00011573,2]
[339333834,1727453432492,-6778.47824333,0.00011573,2]
[339333835,1727453432503,-397.92779334,0.00011573,2]
[339333836,1727453432515,-53609.13431856,0.00011573,2]
[339333837,1727453432527,-4612.82411465,0.00011573,2]
[339333838,1727453432538,-3906.6272733,0.00011573,2]
[339333839,1727453432550,-848.1,0.00011573,2]
[339333840,1727453432584,-7977.38555655,0.00011573,2]
[339333841,1727453432596,-478.59396333,0.00011573,2]
[339333842,1727453432607,-1649.09184316,0.00011573,2]
[339333843,1727453432619,-719.4241955,0.00011573,2]
[339333844,1727453432630,-139467.415549,0.00011573,2]
[339333845,1727453432641,-2538.53677235,0.00011573,2]
[339333846,1727453434645,1345.26,0.00010602,2]
[339333855,1727453438022,-283.55847122,0.00011573,2]
[339333857,1727453438033,-424.88308538,0.00011573,2]
[339333859,1727453438044,-14468.10957523,0.00011573,2]
[339333860,1727453438054,-226.48111976,0.00011591,2]
[339333861,1727453438063,-2700.0,0.000116,4]
[339333862,1727453438074,-226.48111976,0.00011613,2]
[339333863,1727453438083,-1263.0,0.00011624,2]
[339333864,1727453438093,-625.0,0.00011624,2]
[339333865,1727453438103,-933.0,0.00011624,2]
[339333866,1727453438112,-150.0,0.00011624,2]
[339333867,1727453438122,-558.0,0.00011624,2]
[339333868,1727453438132,-810.0,0.00011624,2]
[339333869,1727453438141,-422.22119727,0.00011631,2]
[339333870,1727453438152,-226.48111976,0.00011635,2]
[339333871,1727453438161,-1904.0,0.00011636,2]
[339333872,1727453438171,-554.0,0.00011636,2]
[339333873,1727453438181,-727.70155801,0.00011636,2]
[339333874,1727453438193,-312.76791973,0.00011636,2]
[339333875,1727453438206,-2308.53052226,0.00011636,2]
[339333876,1727453438216,-807.0,0.00011636,2]
[339333877,1727453438225,-1910.0,0.00011636,2]
[339333878,1727453438235,-790.19,0.00011641,2]
[339333879,1727453438247,-150.0,0.00011651,2]
[339333880,1727453438257,-5871.0,0.00011651,2]
[339333881,1727453438267,-772.24269243,0.00011651,2]
[339333888,1727453438888,-385.01630757,0.00011651,2]
[339333889,1727453438900,-1201.02930637,0.00011651,2]
[339333890,1727453438939,-8715.01869363,0.00011651,2]
[339333891,1727453438950,-1081.0,0.00011651,2]
[339333892,1727453438961,-226.48111976,0.00011658,2]
[339333893,1727453438973,-354.414,0.00011679,2]
[339333894,1727453438983,-180.407,0.00011679,2]
[339333895,1727453438995,-7500.0,0.0001168,2]
[339333896,1727453439006,-151.16962535,0.0001168,2]
[339333897,1727453439017,-361.33023562,0.0001168,2]
[339333898,1727453439029,-226.48111976,0.0001168,2]
[339333899,1727453439041,-306.47969816,0.0001168,2]
[339333900,1727453439052,-200.0,0.00011685,2]
[339333901,1727453439063,-200.0,0.00011685,2]
[339333902,1727453439075,-200.0,0.00011685,2]
[339333903,1727453439087,-200.0,0.00011686,2]
[339333904,1727453439099,-200.0,0.00011686,2]
[339333905,1727453439112,-200.0,0.00011686,2]
[339333906,1727453439123,-150.0,0.0001169,2]
[339333907,1727453439135,-150.803,0.0001169,2]
[339333908,1727453439145,-168.843,0.0001169,2]
[339333909,1727453439155,-150.0,0.0001169,2]
[339333910,1727453439165,-448.0,0.0001169,2]
[339333911,1727453439175,-1296.0,0.0001169,2]
[339333912,1727453439184,-3065.68332839,0.000117,2]
[339333913,1727453439195,-358.25,0.000117,2]
[339333914,1727453439207,-428.44,0.000117,2]
[339333915,1727453439218,-150.0,0.000117,2]
[339333916,1727453439232,-753.88,0.000117,2]
[339333917,1727453439244,-150.0,0.000117,2]
[339333918,1727453439256,-5800.0,0.000117,2]
[339333919,1727453439266,-3400.0,0.000117,4]
[339333920,1727453439275,-1000.0,0.00011721,2]
[339333921,1727453439286,-468.5016,0.00011721,2]
[339333922,1727453439298,-159.45482597,0.00011753,2]
[339333923,1727453439309,-153.41075135,0.00011753,2]
[339333924,1727453439320,-176.88561913,0.00011753,2]
[339333925,1727453439330,-150.4,0.0001177,2]
[339333926,1727453439347,-150.4,0.0001177,2]
[339333927,1727453439357,-168.75603804,0.0001177,2]
[339333928,1727453439367,-150.4,0.0001177,2]
[339333929,1727453439378,-168.75603804,0.0001177,2]
[339333930,1727453439389,-2844.0961304,0.00011773,2]
[339333931,1727453439399,-501.4659643,0.00011773,2]
[339333932,1727453439410,-161.28474378,0.00011773,2]
[339333933,1727453439420,-500.0,0.00011773,2]
[339333934,1727453439431,-306.44469223,0.00011773,2]
[339333935,1727453439441,-500.0,0.00011773,2]
[339333936,1727453439453,-150.01,0.00011779,2]
[339333937,1727453439467,-438.19070832,0.00011779,2]
[339333938,1727453439478,-612.0,0.00011779,2]
[339333939,1727453439488,-851927.79427069,0.0001178,2]
[339333940,1727453439503,-1851.28133172,0.0001178,2]
[339333941,1727453439515,-3742.70217563,0.0001178,2]
[339333942,1727453439562,-729.17517403,0.0001178,2]
[339333943,1727453439576,-475.82133345,0.0001178,2]
[339333944,1727453439589,-1500.0,0.0001178,2]
[339333945,1727453439602,-12504.31307594,0.0001178,2]
[339333946,1727453439615,-2212.02777319,0.0001178,2]
[339333951,1727453439923,-2976.02181235,0.0001178,2]
[339333952,1727453440031,-901.71984,0.0001178,2]
[339333953,1727453440046,-34894.86797416,0.0001178,2]
[339333954,1727453440057,-500.0,0.0001178,2]
[339333955,1727453440067,-500.0,0.0001178,2]
[339333956,1727453440079,-500.0,0.0001178,2]
[339333957,1727453440089,-500.0,0.0001178,2]
[339333958,1727453440100,-500.0,0.0001178,2]
[339333959,1727453440111,-500.0,0.0001178,2]
[339333960,1727453440121,-500.0,0.0001178,2]
[339333961,1727453440132,-626.54708144,0.0001178,2]
[339333962,1727453440143,-500.0,0.0001178,2]
[339333963,1727453440153,-500.0,0.0001178,2]
[339333964,1727453440164,-500.0,0.0001178,2]
[339333965,1727453440175,-600.90108169,0.0001178,2]
[339333966,1727453440185,-500.0,0.0001178,2]
[339333967,1727453440196,-504.32657564,0.0001178,2]
[339333968,1727453440206,-502.21743081,0.0001178,2]
[339333969,1727453440216,-500.31234672,0.0001178,2]
[339333970,1727453440227,-500.55141919,0.0001178,2]
[339333971,1727453440237,-500.0,0.0001178,2]
[339333972,1727453440248,-500.98815274,0.0001178,2]
[339333973,1727453440258,-500.34853882,0.0001178,2]
[339333974,1727453440269,-500.0,0.0001178,2]
[339333975,1727453440279,-500.9918353,0.0001178,2]
[339333976,1727453440290,-500.0,0.0001178,2]
[339333977,1727453440301,-501.3847149,0.0001178,2]
[339333978,1727453440311,-300.0,0.0001178,2]
[339333979,1727453440323,-300.0,0.0001178,2]
[339333980,1727453440335,-300.80763969,0.0001178,2]
[339333981,1727453440345,-500.0,0.0001178,2]
[339333982,1727453440355,-500.81630288,0.0001178,2]
[339333983,1727453440366,-510.85021106,0.0001178,2]
[339333984,1727453440376,-500.29807986,0.0001178,2]
[339333986,1727453440387,-500.0,0.0001178,2]
[339333988,1727453440398,-500.85801221,0.0001178,2]
[339333990,1727453440409,-500.0,0.0001178,2]
[339333992,1727453440419,-500.93936518,0.0001178,2]
[339333994,1727453440431,-500.0,0.0001178,2]
[339333996,1727453440442,-501.42216846,0.0001178,2]
[339333998,1727453440453,-500.0,0.0001178,2]
[339334000,1727453440465,-500.0,0.0001178,2]
[339334002,1727453440476,-500.0,0.0001178,2]
[339334004,1727453440487,-500.64443129,0.0001178,2]
[339334006,1727453440498,-500.0,0.0001178,2]
[339334008,1727453440509,-434.06378769,0.0001178,2]
[339334010,1727453440521,-500.0,0.0001178,2]
[339334012,1727453440532,-500.0,0.0001178,2]
[339334014,1727453440542,-536.17719727,0.0001178,2]
[339334017,1727453440553,-500.0,0.0001178,2]
[339334019,1727453440564,-500.0,0.0001178,2]
[339334021,1727453440575,-500.0,0.0001178,2]
[339334023,1727453440586,-500.0,0.0001178,2]
[339334025,1727453440596,-500.0,0.0001178,2]
[339334027,1727453440607,-500.0,0.0001178,2]
[339334028,1727453440618,-503.32937234,0.0001178,2]
[339334030,1727453440628,-500.0,0.0001178,2]
[339334033,1727453440639,-500.0,0.0001178,2]
[339334035,1727453440650,-500.0,0.0001178,2]
[339334037,1727453440660,-500.0,0.0001178,2]
[339334039,1727453440671,-500.0,0.0001178,2]
[339334041,1727453440682,-500.0,0.0001178,2]
[339334043,1727453440692,-504.27476956,0.0001178,2]
[339334045,1727453440703,-500.0,0.0001178,2]
[339334047,1727453440713,-500.0,0.0001178,2]
[339334049,1727453440723,-500.0,0.0001178,2]
[339334051,1727453440734,-500.0,0.0001178,2]
[339334053,1727453440745,-502.1535612,0.0001178,2]
[339334055,1727453440755,-500.0,0.0001178,2]
[339334057,1727453440766,-500.0,0.0001178,2]
[339334059,1727453440777,-500.0,0.0001178,2]
[339334061,1727453440787,-500.0,0.0001178,2]
[339334063,1727453440797,-500.0,0.0001178,2]
[339334066,1727453440807,-498.80395733,0.0001178,2]
[339334068,1727453440817,-500.0,0.0001178,2]
[339334070,1727453440829,-500.0,0.0001178,2]